[Event "*** SCC Grand Prix: Titled Tuesday Blitz"]
[Site "Chess.com"]
[Date "2020.09.08"]
[Round "9"]
[White "Xeslu"]
[Black "Barmen_EV"]
[Result "0-1"]
[WhiteElo "2317"]
[BlackElo "2442"]
[TimeControl "180+1"]
[EndTime "11:47:39 PDT"]
[Termination "Barmen_EV won on time"]

1. e4 {[%clk 0:03:00.9]} 1... f6 {[%clk 0:02:39.7]} 2. d4 {[%clk 0:02:56.5]}
2... g6 {[%clk 0:02:39.3]} 3. Bc4 {[%clk 0:02:55.1]} 3... Nh6 {[%clk 0:02:40.2]}
4. h4 {[%clk 0:02:53.9]} 4... Nf7 {[%clk 0:02:41.1]} 5. h5 {[%clk 0:02:54.1]}
5... g5 {[%clk 0:02:41.1]} 6. Nc3 {[%clk 0:02:50.9]} 6... c6 {[%clk 0:02:41.1]}
7. a4 {[%clk 0:02:50.5]} 7... Na6 {[%clk 0:02:36.7]} 8. Nge2 {[%clk 0:02:49.8]}
8... Nc7 {[%clk 0:02:36.8]} 9. d5 {[%clk 0:02:48.4]} 9... Ne5 {[%clk 0:02:32.3]}
10. Bb3 {[%clk 0:02:47.6]} 10... Bh6 {[%clk 0:02:25.8]} 11. Ng3 {[%clk
0:02:46.1]} 11... e6 {[%clk 0:02:25.1]} 12. Be3 {[%clk 0:02:36]} 12... O-O
{[%clk 0:02:22.5]} 13. Qe2 {[%clk 0:02:18.5]} 13... Kh8 {[%clk 0:02:17.1]} 14.
O-O-O {[%clk 0:02:18]} 14... b5 {[%clk 0:02:09.8]} 15. dxe6 {[%clk 0:02:08]}
15... bxa4 {[%clk 0:01:55.9]} 16. Nxa4 {[%clk 0:02:05.7]} 16... d6 {[%clk
0:01:55.6]} 17. Nf5 {[%clk 0:01:58.2]} 17... Bxe6 {[%clk 0:01:45.4]} 18. Nxh6
{[%clk 0:01:45.5]} 18... Bxb3 {[%clk 0:01:41.7]} 19. cxb3 {[%clk 0:01:46.4]}
19... Rb8 {[%clk 0:01:42.4]} 20. Qc2 {[%clk 0:01:32.7]} 20... Ne6 {[%clk
0:01:33.2]} 21. Nf5 {[%clk 0:01:30.1]} 21... d5 {[%clk 0:01:31.7]} 22. Nc5
{[%clk 0:01:18.3]} 22... Nxc5 {[%clk 0:01:26.6]} 23. Bxc5 {[%clk 0:01:18.3]}
23... Re8 {[%clk 0:01:26.7]} 24. Nd6 {[%clk 0:01:04.4]} 24... Re7 {[%clk
0:01:08.9]} 25. Qc3 {[%clk 0:01:04]} 25... Rd7 {[%clk 0:01:03.8]} 26. Nf5 {[%clk
0:00:51.8]} 26... dxe4 {[%clk 0:01:00.3]} 27. Rxd7 {[%clk 0:00:45.3]} 27... Qxd7
{[%clk 0:01:01.2]} 28. Nd6 {[%clk 0:00:18.4]} 28... Qe6 {[%clk 0:00:52.7]} 29.
Kc2 {[%clk 0:00:17.6]} 29... Nd3 {[%clk 0:00:49.5]} 30. Rd1 {[%clk 0:00:15.2]}
30... Qd5 {[%clk 0:00:36]} 31. Rxd3 {[%clk 0:00:14.2]} 31... exd3+ {[%clk
0:00:34.5]} 32. Kd2 {[%clk 0:00:14]} 32... Kg7 {[%clk 0:00:30]} 33. h6+ {[%clk
0:00:13.8]} 33... Kg6 {[%clk 0:00:09.7]} 34. b4 {[%clk 0:00:13.7]} 34... Rd8
{[%clk 0:00:07.3]} 35. Qxd3+ {[%clk 0:00:13.9]} 35... Qxd3+ {[%clk 0:00:06.1]}
36. Kxd3 {[%clk 0:00:14]} 36... f5 {[%clk 0:00:07]} 37. Kd4 {[%clk 0:00:13.4]}
37... Kxh6 {[%clk 0:00:06.9]} 38. Ke5 {[%clk 0:00:13.1]} 38... Kg6 {[%clk
0:00:07.8]} 39. Nxf5 {[%clk 0:00:11.6]} 39... Rd5+ {[%clk 0:00:06]} 40. Ke4
{[%clk 0:00:11.9]} 40... Rxf5 {[%clk 0:00:06.9]} 41. g3 {[%clk 0:00:12]} 41...
a6 {[%clk 0:00:06.5]} 42. f4 {[%clk 0:00:12.3]} 42... Rd5 {[%clk 0:00:06.9]} 43.
b3 {[%clk 0:00:11]} 43... gxf4 {[%clk 0:00:06.8]} 44. g4 {[%clk 0:00:11.9]}
44... h5 {[%clk 0:00:07.6]} 45. Kxf4 {[%clk 0:00:12.8]} 45... h4 {[%clk
0:00:03.9]} 0-1

[Event "*** SCC Grand Prix: Titled Tuesday Blitz"]
[Site "Chess.com"]
[Date "2020.09.08"]
[Round "9"]
[White "Sethu0025"]
[Black "poummba"]
[Result "1-0"]
[WhiteElo "2703"]
[BlackElo "2530"]
[TimeControl "180+1"]
[EndTime "11:47:41 PDT"]
[Termination "Sethu0025 won on time"]

1. Nf3 {[%clk 0:03:00.9]} 1... g6 {[%clk 0:02:59.1]} 2. e4 {[%clk 0:02:59.8]}
2... c5 {[%clk 0:02:57.7]} 3. c3 {[%clk 0:02:58.5]} 3... Bg7 {[%clk 0:02:55.8]}
4. d4 {[%clk 0:02:58.7]} 4... cxd4 {[%clk 0:02:56.7]} 5. cxd4 {[%clk 0:02:59.6]}
5... d5 {[%clk 0:02:57.3]} 6. e5 {[%clk 0:02:59.4]} 6... Nh6 {[%clk 0:02:57.5]}
7. h3 {[%clk 0:02:59.5]} 7... O-O {[%clk 0:02:56.5]} 8. Nc3 {[%clk 0:03:00]}
8... f6 {[%clk 0:02:54]} 9. exf6 {[%clk 0:02:59.7]} 9... exf6 {[%clk 0:02:53.7]}
10. Be2 {[%clk 0:03:00]} 10... Nc6 {[%clk 0:02:54]} 11. O-O {[%clk 0:03:00.5]}
11... Nf7 {[%clk 0:02:51]} 12. Re1 {[%clk 0:02:59.4]} 12... Re8 {[%clk
0:02:47.8]} 13. Qb3 {[%clk 0:02:58.6]} 13... f5 {[%clk 0:02:39.4]} 14. Qxd5
{[%clk 0:02:30.1]} 14... Nxd4 {[%clk 0:02:17.3]} 15. Nxd4 {[%clk 0:02:04.8]}
15... Bxd4 {[%clk 0:02:14.3]} 16. Qxd8 {[%clk 0:01:57.7]} 16... Rxd8 {[%clk
0:02:09.5]} 17. Nb5 {[%clk 0:01:56]} 17... Bb6 {[%clk 0:01:57.5]} 18. Bc4 {[%clk
0:01:55.8]} 18... Kf8 {[%clk 0:01:37.5]} 19. Bf4 {[%clk 0:01:53.2]} 19... a6
{[%clk 0:01:31.1]} 20. Nc7 {[%clk 0:01:47.3]} 20... Bxc7 {[%clk 0:01:26]} 21.
Bxc7 {[%clk 0:01:48.2]} 21... Re8 {[%clk 0:01:17.4]} 22. Bb6 {[%clk 0:01:43.3]}
22... Bd7 {[%clk 0:01:10.6]} 23. Bc5+ {[%clk 0:01:39.1]} 23... Kg7 {[%clk
0:01:10.9]} 24. Bd4+ {[%clk 0:01:39.1]} 24... Kf8 {[%clk 0:01:10.5]} 25. Rad1
{[%clk 0:01:37.9]} 25... Rxe1+ {[%clk 0:01:08.4]} 26. Rxe1 {[%clk 0:01:37.3]}
26... Re8 {[%clk 0:01:05.8]} 27. Bc5+ {[%clk 0:01:33.6]} 27... Kg7 {[%clk
0:01:05.7]} 28. Bd4+ {[%clk 0:01:33.6]} 28... Kf8 {[%clk 0:01:06.1]} 29. Rd1
{[%clk 0:01:33.8]} 29... Bc6 {[%clk 0:01:02.5]} 30. Bc5+ {[%clk 0:01:27.6]}
30... Kg7 {[%clk 0:01:01.8]} 31. Bd4+ {[%clk 0:01:23.8]} 31... Kf8 {[%clk
0:01:01.6]} 32. Be3 {[%clk 0:01:24.1]} 32... Rd8 {[%clk 0:00:54.4]} 33. Bh6+
{[%clk 0:01:19.8]} 33... Ke7 {[%clk 0:00:54.8]} 34. Re1+ {[%clk 0:01:18.9]}
34... Be4 {[%clk 0:00:44.2]} 35. Bc1 {[%clk 0:01:06.2]} 35... Kf6 {[%clk
0:00:40]} 36. b3 {[%clk 0:01:04]} 36... g5 {[%clk 0:00:17]} 37. f3 {[%clk
0:00:53.6]} 37... Bd5 {[%clk 0:00:16.4]} 38. Bb2+ {[%clk 0:00:53.2]} 38... Kg6
{[%clk 0:00:15.7]} 39. Bxd5 {[%clk 0:00:49.5]} 39... Rxd5 {[%clk 0:00:16.6]} 40.
Re6+ {[%clk 0:00:49.7]} 40... Kh5 {[%clk 0:00:15.4]} 41. Bc3 {[%clk 0:00:40.5]}
41... Rc5 {[%clk 0:00:04.7]} 42. Bb4 {[%clk 0:00:29.7]} 42... Rc2 {[%clk
0:00:04.4]} 43. Re7 {[%clk 0:00:27.2]} 43... Kg6 {[%clk 0:00:04.1]} 44. Re6+
{[%clk 0:00:27.3]} 44... Kg7 {[%clk 0:00:04.3]} 45. a4 {[%clk 0:00:25.7]} 45...
Rc1+ {[%clk 0:00:01.9]} 46. Kh2 {[%clk 0:00:25.8]} 46... Rb1 {[%clk 0:00:02.8]}
47. Bc3+ {[%clk 0:00:26.2]} 47... Kf8 {[%clk 0:00:03.3]} 48. b4 {[%clk
0:00:26.6]} 48... Rb3 {[%clk 0:00:02.3]} 49. Bd4 {[%clk 0:00:25.8]} 49... Rd3
{[%clk 0:00:01.3]} 50. Bc5+ {[%clk 0:00:25.7]} 50... Kg7 {[%clk 0:00:01.8]} 51.
Re7 {[%clk 0:00:26.2]} 51... Kf6 {[%clk 0:00:01.7]} 52. Rxb7 {[%clk 0:00:26.4]}
52... Rd2 {[%clk 0:00:01.5]} 53. Rb6+ {[%clk 0:00:26.3]} 53... Kg7 {[%clk
0:00:01.4]} 54. Rxa6 {[%clk 0:00:26.2]} 54... Ne5 {[%clk 0:00:01.7]} 55. Rd6
{[%clk 0:00:26.2]} 55... Nxf3+ {[%clk 0:00:01.7]} 56. Kg3 {[%clk 0:00:26.4]} 1-0

[Event "*** SCC Grand Prix: Titled Tuesday Blitz"]
[Site "Chess.com"]
[Date "2020.09.08"]
[Round "9"]
[White "Oligan22"]
[Black "wannabe2700"]
[Result "1-0"]
[WhiteElo "2486"]
[BlackElo "2628"]
[TimeControl "180+1"]
[EndTime "11:47:42 PDT"]
[Termination "Oligan22 won on time"]

1. e4 {[%clk 0:03:00.9]} 1... c6 {[%clk 0:02:58.5]} 2. d4 {[%clk 0:03:00.1]}
2... d5 {[%clk 0:02:59]} 3. e5 {[%clk 0:03:00.4]} 3... Bf5 {[%clk 0:02:58.9]} 4.
h4 {[%clk 0:02:59.8]} 4... h5 {[%clk 0:02:59]} 5. c4 {[%clk 0:02:55.3]} 5... e6
{[%clk 0:02:57.5]} 6. Nc3 {[%clk 0:02:55.3]} 6... Bb4 {[%clk 0:02:55.3]} 7. Qb3
{[%clk 0:02:46.5]} 7... Qb6 {[%clk 0:02:33.2]} 8. c5 {[%clk 0:02:38.6]} 8...
Bxc3+ {[%clk 0:02:29]} 9. bxc3 {[%clk 0:02:26.3]} 9... Qc7 {[%clk 0:02:18.4]}
10. Ne2 {[%clk 0:02:18.1]} 10... Nd7 {[%clk 0:02:17.8]} 11. Ng3 {[%clk
0:02:10.9]} 11... Bg6 {[%clk 0:02:17.5]} 12. Be2 {[%clk 0:02:10.7]} 12... Ne7
{[%clk 0:02:09.6]} 13. Bg5 {[%clk 0:02:07.8]} 13... f6 {[%clk 0:02:06.1]} 14.
exf6 {[%clk 0:02:00.1]} 14... gxf6 {[%clk 0:02:06]} 15. Be3 {[%clk 0:02:00.8]}
15... O-O-O {[%clk 0:01:58.7]} 16. c4 {[%clk 0:01:47.8]} 16... e5 {[%clk
0:01:55.7]} 17. O-O {[%clk 0:01:38.4]} 17... e4 {[%clk 0:01:37.5]} 18. Rab1
{[%clk 0:01:29]} 18... Nf8 {[%clk 0:01:04.8]} 19. Bf4 {[%clk 0:01:21]} 19... Qd7
{[%clk 0:00:57.7]} 20. Bd6 {[%clk 0:01:04.8]} 20... Ne6 {[%clk 0:00:43.1]} 21.
cxd5 {[%clk 0:01:03.8]} 21... Nxd5 {[%clk 0:00:44]} 22. Ba6 {[%clk 0:01:03]}
22... Rh7 {[%clk 0:00:43.8]} 23. Qa3 {[%clk 0:00:55.7]} 23... Nxd4 {[%clk
0:00:35.4]} 24. Bxb7+ {[%clk 0:00:49.3]} 24... Qxb7 {[%clk 0:00:36.3]} 25. Rxb7
{[%clk 0:00:49.6]} 25... Rxb7 {[%clk 0:00:36.1]} 26. Qa4 {[%clk 0:00:46.6]}
26... Nb5 {[%clk 0:00:34.8]} 27. Nxe4 {[%clk 0:00:43.1]} 27... Bxe4 {[%clk
0:00:26.1]} 28. Qxe4 {[%clk 0:00:44]} 28... Rbd7 {[%clk 0:00:19.9]} 29. Qf5
{[%clk 0:00:37.1]} 29... Nxd6 {[%clk 0:00:17.3]} 30. cxd6 {[%clk 0:00:36.4]}
30... Kb7 {[%clk 0:00:18.2]} 31. Rb1+ {[%clk 0:00:35.6]} 31... Ka8 {[%clk
0:00:18.2]} 32. Qxh5 {[%clk 0:00:32.5]} 32... Rxd6 {[%clk 0:00:18.3]} 33. Qf7
{[%clk 0:00:31.7]} 33... R8d7 {[%clk 0:00:16.1]} 34. Qg8+ {[%clk 0:00:27.6]}
34... Rd8 {[%clk 0:00:16.5]} 35. Qf7 {[%clk 0:00:24.3]} 35... R8d7 {[%clk
0:00:16.7]} 36. Qe8+ {[%clk 0:00:24.6]} 36... Rd8 {[%clk 0:00:17]} 37. Qe4
{[%clk 0:00:24.3]} 37... Nc3 {[%clk 0:00:16.3]} 38. Qf3 {[%clk 0:00:19.3]} 38...
Nxb1 {[%clk 0:00:16.5]} 39. h5 {[%clk 0:00:19]} 39... Nd2 {[%clk 0:00:15.7]} 40.
Qc3 {[%clk 0:00:17.6]} 40... Ne4 {[%clk 0:00:15.4]} 41. Qc4 {[%clk 0:00:17.4]}
41... f5 {[%clk 0:00:13.4]} 42. Qf7 {[%clk 0:00:15.2]} 42... R8d7 {[%clk
0:00:13.2]} 43. Qxf5 {[%clk 0:00:13.4]} 43... Nf6 {[%clk 0:00:09.4]} 44. h6
{[%clk 0:00:12.6]} 44... Kb7 {[%clk 0:00:09.1]} 45. g4 {[%clk 0:00:11.1]} 45...
Nxg4 {[%clk 0:00:03.9]} 46. Qxg4 {[%clk 0:00:11.1]} 46... Rxh6 {[%clk
0:00:03.6]} 47. Qxd7+ {[%clk 0:00:11.1]} 47... Kb6 {[%clk 0:00:02.7]} 48. Qd8+
{[%clk 0:00:10.5]} 48... Kb7 {[%clk 0:00:02.3]} 49. Qe7+ {[%clk 0:00:10.1]}
49... Ka6 {[%clk 0:00:01.4]} 50. Qe2+ {[%clk 0:00:09.5]} 50... Kb7 {[%clk
0:00:01.1]} 51. Qb2+ {[%clk 0:00:09.5]} 1-0

[Event "*** SCC Grand Prix: Titled Tuesday Blitz"]
[Site "Chess.com"]
[Date "2020.09.08"]
[Round "9"]
[White "GasconJR"]
[Black "platy3"]
[Result "1-0"]
[WhiteElo "2612"]
[BlackElo "2812"]
[TimeControl "180+1"]
[EndTime "11:47:43 PDT"]
[Termination "GasconJR won by resignation"]

1. d4 {[%clk 0:03:00.9]} 1... Nf6 {[%clk 0:02:57]} 2. Bf4 {[%clk 0:02:56.9]}
2... d5 {[%clk 0:02:55]} 3. e3 {[%clk 0:02:41.7]} 3... c5 {[%clk 0:02:54.8]} 4.
Nf3 {[%clk 0:02:36.6]} 4... Nc6 {[%clk 0:02:55]} 5. Nbd2 {[%clk 0:02:32.2]} 5...
e6 {[%clk 0:02:54.7]} 6. c3 {[%clk 0:02:31.1]} 6... cxd4 {[%clk 0:02:52.2]} 7.
exd4 {[%clk 0:02:29.7]} 7... Nh5 {[%clk 0:02:52.6]} 8. Bg5 {[%clk 0:02:26.3]}
8... f6 {[%clk 0:02:52.2]} 9. Be3 {[%clk 0:02:26.1]} 9... Bd6 {[%clk 0:02:44.4]}
10. g3 {[%clk 0:02:24.5]} 10... g6 {[%clk 0:02:44.6]} 11. c4 {[%clk 0:02:13.3]}
11... O-O {[%clk 0:02:42.6]} 12. Be2 {[%clk 0:01:59]} 12... Ng7 {[%clk
0:02:41.3]} 13. Bh6 {[%clk 0:01:45.3]} 13... Re8 {[%clk 0:02:35.4]} 14. Bxg7
{[%clk 0:01:42]} 14... Kxg7 {[%clk 0:02:36.3]} 15. O-O {[%clk 0:01:41.4]} 15...
b6 {[%clk 0:02:31.5]} 16. Rc1 {[%clk 0:01:32.5]} 16... Bb7 {[%clk 0:02:30.2]}
17. cxd5 {[%clk 0:01:31.3]} 17... exd5 {[%clk 0:02:29.5]} 18. Bb5 {[%clk
0:01:31.8]} 18... Rc8 {[%clk 0:02:18.1]} 19. Qa4 {[%clk 0:01:29.8]} 19... Qd7
{[%clk 0:02:18.5]} 20. Qxa7 {[%clk 0:00:57.1]} 20... Nxa7 {[%clk 0:01:07.1]} 21.
Bxd7 {[%clk 0:00:56.3]} 21... Rxc1 {[%clk 0:01:07.8]} 22. Rxc1 {[%clk 0:00:57]}
22... Re7 {[%clk 0:01:08.4]} 23. Bh3 {[%clk 0:00:53.2]} 23... Nc6 {[%clk
0:01:03.1]} 24. a3 {[%clk 0:00:51]} 24... Na5 {[%clk 0:01:02.1]} 25. Bf1 {[%clk
0:00:49]} 25... g5 {[%clk 0:00:53.8]} 26. h3 {[%clk 0:00:48.5]} 26... h5 {[%clk
0:00:53.5]} 27. Bb5 {[%clk 0:00:47.3]} 27... Rc7 {[%clk 0:00:43.4]} 28. Rxc7+
{[%clk 0:00:38]} 28... Bxc7 {[%clk 0:00:44.3]} 29. Ne1 {[%clk 0:00:29.7]} 29...
Nc6 {[%clk 0:00:41.3]} 30. Bxc6 {[%clk 0:00:25.8]} 30... Bxc6 {[%clk 0:00:42.2]}
31. Nd3 {[%clk 0:00:24.7]} 31... Bd6 {[%clk 0:00:42]} 32. Nb1 {[%clk 0:00:19.2]}
32... Kf7 {[%clk 0:00:41.4]} 33. Nc3 {[%clk 0:00:19.4]} 33... Ke6 {[%clk
0:00:42]} 34. Kf1 {[%clk 0:00:16.1]} 34... Bb7 {[%clk 0:00:38.9]} 35. Ke2 {[%clk
0:00:16.1]} 35... Bb8 {[%clk 0:00:37.4]} 36. Ke3 {[%clk 0:00:15.5]} 36... Bc6
{[%clk 0:00:33.6]} 37. f4 {[%clk 0:00:14.8]} 37... Bb7 {[%clk 0:00:32.4]} 38.
Kf3 {[%clk 0:00:14.6]} 38... Bc6 {[%clk 0:00:27.3]} 39. g4 {[%clk 0:00:14.1]}
39... hxg4+ {[%clk 0:00:23.6]} 40. Kxg4 {[%clk 0:00:11.2]} 40... gxf4 {[%clk
0:00:01.3]} 41. Nxf4+ {[%clk 0:00:11]} 41... Kd6 {[%clk 0:00:02.2]} 42. h4
{[%clk 0:00:08]} 42... b5 {[%clk 0:00:02.7]} 43. h5 {[%clk 0:00:07.5]} 43... Ba7
{[%clk 0:00:03.2]} 44. Nce2 {[%clk 0:00:04.5]} 44... Bd7+ {[%clk 0:00:03.3]} 45.
Kf3 {[%clk 0:00:05]} 45... Bf5 {[%clk 0:00:03.6]} 46. Ng3 {[%clk 0:00:05.4]}
46... Bc2 {[%clk 0:00:02.5]} 47. Kg4 {[%clk 0:00:04.5]} 47... Bxd4 {[%clk
0:00:02.7]} 48. Nf5+ {[%clk 0:00:04.9]} 48... Bxf5+ {[%clk 0:00:02.9]} 49. Kxf5
{[%clk 0:00:05.2]} 49... Ke7 {[%clk 0:00:03.3]} 50. h6 {[%clk 0:00:04.9]} 50...
Kf7 {[%clk 0:00:03.8]} 51. h7 {[%clk 0:00:04.8]} 51... Kg7 {[%clk 0:00:04.4]}
52. Ne6+ {[%clk 0:00:05.4]} 1-0

[Event "*** SCC Grand Prix: Titled Tuesday Blitz"]
[Site "Chess.com"]
[Date "2020.09.08"]
[Round "9"]
[White "paulrusan"]
[Black "RestartingChess"]
[Result "1/2-1/2"]
[WhiteElo "2285"]
[BlackElo "2429"]
[TimeControl "180+1"]
[EndTime "11:47:45 PDT"]
[Termination "Game drawn by repetition"]

1. e4 {[%clk 0:01:39.5]} 1... Nf6 {[%clk 0:03:00.9]} 2. e5 {[%clk 0:01:39.1]}
2... Nd5 {[%clk 0:03:00.9]} 3. c4 {[%clk 0:01:39.3]} 3... Nb6 {[%clk 0:03:01.2]}
4. d4 {[%clk 0:01:39.6]} 4... d6 {[%clk 0:03:01.7]} 5. exd6 {[%clk 0:01:40.2]}
5... exd6 {[%clk 0:03:02.6]} 6. Nc3 {[%clk 0:01:40.4]} 6... Be7 {[%clk
0:03:03.1]} 7. Qf3 {[%clk 0:01:40.2]} 7... O-O {[%clk 0:03:02.6]} 8. Be3 {[%clk
0:01:40.5]} 8... Bf6 {[%clk 0:03:03.1]} 9. O-O-O {[%clk 0:01:40.3]} 9... d5
{[%clk 0:02:58]} 10. c5 {[%clk 0:01:33.5]} 10... Nc4 {[%clk 0:02:57.9]} 11. Bxc4
{[%clk 0:01:32.4]} 11... dxc4 {[%clk 0:02:58.8]} 12. Nge2 {[%clk 0:01:32.1]}
12... Nc6 {[%clk 0:02:57.1]} 13. d5 {[%clk 0:01:32.2]} 13... Ne5 {[%clk
0:02:57]} 14. Qe4 {[%clk 0:01:29]} 14... Re8 {[%clk 0:02:52.2]} 15. Kb1 {[%clk
0:01:26]} 15... g6 {[%clk 0:02:43.4]} 16. Ng3 {[%clk 0:01:23.1]} 16... b5 {[%clk
0:02:31.3]} 17. d6 {[%clk 0:01:16.5]} 17... c6 {[%clk 0:02:30.7]} 18. Qf4 {[%clk
0:01:07.5]} 18... Nd3 {[%clk 0:02:25.9]} 19. Rxd3 {[%clk 0:01:05.3]} 19... cxd3
{[%clk 0:02:26.1]} 20. Nce4 {[%clk 0:01:05]} 20... Bg7 {[%clk 0:02:24.3]} 21. h4
{[%clk 0:01:02.1]} 21... Be6 {[%clk 0:02:21.8]} 22. Rd1 {[%clk 0:01:00.9]} 22...
Qa5 {[%clk 0:02:22]} 23. a3 {[%clk 0:00:58.5]} 23... Rab8 {[%clk 0:02:14.9]} 24.
Nf6+ {[%clk 0:00:56.4]} 24... Bxf6 {[%clk 0:01:53.7]} 25. Qxf6 {[%clk
0:00:56.4]} 25... Qa4 {[%clk 0:01:53.7]} 26. Rxd3 {[%clk 0:00:54.1]} 26... Qc4
{[%clk 0:01:51.3]} 27. Rc3 {[%clk 0:00:35.8]} 27... Qa2+ {[%clk 0:01:49.6]} 28.
Kc2 {[%clk 0:00:36.1]} 28... Qd5 {[%clk 0:00:52.6]} 29. Bh6 {[%clk 0:00:29.5]}
29... Bf5+ {[%clk 0:00:53.2]} 30. Nxf5 {[%clk 0:00:27.1]} 30... Qxf5+ {[%clk
0:00:53.4]} 31. Qxf5 {[%clk 0:00:27.1]} 31... gxf5 {[%clk 0:00:54.3]} 32. Rg3+
{[%clk 0:00:27.1]} 32... Kh8 {[%clk 0:00:55.1]} 33. Bg7+ {[%clk 0:00:26.7]}
33... Kg8 {[%clk 0:00:55.4]} 34. d7 {[%clk 0:00:25.4]} 34... Red8 {[%clk
0:00:52.7]} 35. Bf6+ {[%clk 0:00:24.9]} 35... Kf8 {[%clk 0:00:53.4]} 36. Bxd8
{[%clk 0:00:25]} 36... Rxd8 {[%clk 0:00:54.3]} 37. Rd3 {[%clk 0:00:23.7]} 37...
Ke7 {[%clk 0:00:54.5]} 38. Kc3 {[%clk 0:00:19.2]} 38... Rxd7 {[%clk 0:00:55]}
39. Rxd7+ {[%clk 0:00:19.2]} 39... Kxd7 {[%clk 0:00:55.9]} 40. Kd4 {[%clk
0:00:19.7]} 40... Ke6 {[%clk 0:00:56.2]} 41. f4 {[%clk 0:00:19.5]} 41... h5
{[%clk 0:00:53.2]} 42. b4 {[%clk 0:00:16.6]} 42... a6 {[%clk 0:00:51.1]} 43. Ke3
{[%clk 0:00:13.2]} 43... Kd5 {[%clk 0:00:51.2]} 44. Kd3 {[%clk 0:00:13.4]} 44...
Ke6 {[%clk 0:00:44.7]} 45. Kd4 {[%clk 0:00:11.9]} 45... Kf6 {[%clk 0:00:45.1]}
46. Ke3 {[%clk 0:00:08.8]} 46... Ke7 {[%clk 0:00:44.8]} 47. Kd3 {[%clk
0:00:08.5]} 47... Ke6 {[%clk 0:00:45.7]} 48. Kd4 {[%clk 0:00:08.1]} 48... Kf6
{[%clk 0:00:45.5]} 49. Ke3 {[%clk 0:00:08.1]} 49... Ke7 {[%clk 0:00:43.8]} 50.
Kd3 {[%clk 0:00:08.1]} 50... f6 {[%clk 0:00:44.5]} 51. Ke3 {[%clk 0:00:06.4]}
51... Ke6 {[%clk 0:00:44]} 52. Kd4 {[%clk 0:00:06.8]} 52... Kd7 {[%clk
0:00:44.9]} 53. Ke3 {[%clk 0:00:06.7]} 53... Ke7 {[%clk 0:00:45.8]} 54. Kd3
{[%clk 0:00:06.8]} 54... Kd7 {[%clk 0:00:43.2]} 55. Ke3 {[%clk 0:00:07.1]} 55...
Kc7 {[%clk 0:00:43.9]} 56. Kd3 {[%clk 0:00:07.3]} 56... Kb7 {[%clk 0:00:44.1]}
57. Ke3 {[%clk 0:00:07.6]} 57... a5 {[%clk 0:00:44.1]} 58. Kd3 {[%clk
0:00:07.6]} 58... axb4 {[%clk 0:00:44.4]} 59. axb4 {[%clk 0:00:07.4]} 59... Ka6
{[%clk 0:00:45.3]} 60. Ke3 {[%clk 0:00:07.3]} 60... Ka7 {[%clk 0:00:46.2]} 61.
Kd3 {[%clk 0:00:07.6]} 61... Kb8 {[%clk 0:00:46.9]} 62. Ke3 {[%clk 0:00:08]}
62... Kc8 {[%clk 0:00:47.8]} 63. Kd3 {[%clk 0:00:08.3]} 63... Kd8 {[%clk
0:00:48.7]} 64. Ke3 {[%clk 0:00:08.7]} 64... Kd7 {[%clk 0:00:49.6]} 65. Kd3
{[%clk 0:00:09.1]} 65... Ke6 {[%clk 0:00:50.5]} 66. Kd4 {[%clk 0:00:08.4]} 66...
Kf7 {[%clk 0:00:50.6]} 67. Kd3 {[%clk 0:00:08.6]} 67... Ke7 {[%clk 0:00:51.5]}
68. Ke3 {[%clk 0:00:09]} 68... Ke6 {[%clk 0:00:52.4]} 69. Kd4 {[%clk 0:00:08.4]}
69... Kd7 {[%clk 0:00:52.6]} 70. Ke3 {[%clk 0:00:08]} 70... Ke8 {[%clk
0:00:52.9]} 71. Kd3 {[%clk 0:00:07.8]} 71... Kf8 {[%clk 0:00:53.8]} 72. Ke3
{[%clk 0:00:08.1]} 72... Kg8 {[%clk 0:00:54.7]} 73. Kd3 {[%clk 0:00:08.3]} 73...
Kh8 {[%clk 0:00:55.6]} 74. Ke3 {[%clk 0:00:08.6]} 74... Kh7 {[%clk 0:00:56.5]}
75. Kd3 {[%clk 0:00:09]} 75... Kh6 {[%clk 0:00:57.4]} 76. Ke3 {[%clk 0:00:09.4]}
76... Kg6 {[%clk 0:00:58.3]} 77. Kd3 {[%clk 0:00:09.8]} 77... Kf7 {[%clk
0:00:59.2]} 78. Ke3 {[%clk 0:00:10.2]} 78... Ke6 {[%clk 0:01:00.1]} 79. Kd4
{[%clk 0:00:09.8]} 1/2-1/2